[Event "*** Titled Tuesday Blitz"]
[Site "Chess.com"]
[Date "2021.04.27"]
[Round "11"]
[White "TheKingOfTheForest"]
[Black "I_am_a_Miracle"]
[Result "0-1"]
[WhiteElo "2252"]
[BlackElo "2372"]
[TimeControl "180+1"]
[EndTime "12:05:03 PDT"]
[Termination "I_am_a_Miracle won by resignation"]

1. d4 {[%clk 0:03:00.9]} 1... Nf6 {[%clk 0:02:59.3]} 2. c4 {[%clk 0:03:00.7]}
2... e6 {[%clk 0:02:59.6]} 3. Nc3 {[%clk 0:03:00.7]} 3... Bb4 {[%clk 0:02:59.3]}
4. Qc2 {[%clk 0:03:00.8]} 4... c5 {[%clk 0:02:58.6]} 5. dxc5 {[%clk 0:02:56.1]}
5... O-O {[%clk 0:02:53]} 6. a3 {[%clk 0:02:55]} 6... Bxc5 {[%clk 0:02:52.9]} 7.
b4 {[%clk 0:02:50.1]} 7... Be7 {[%clk 0:02:51.8]} 8. Nf3 {[%clk 0:02:46]} 8...
a5 {[%clk 0:02:51.6]} 9. b5 {[%clk 0:02:42.3]} 9... d5 {[%clk 0:02:51.3]} 10. e3
{[%clk 0:02:21.4]} 10... b6 {[%clk 0:02:49.9]} 11. Be2 {[%clk 0:02:18.8]} 11...
Bb7 {[%clk 0:02:49.2]} 12. O-O {[%clk 0:02:18.4]} 12... Nbd7 {[%clk 0:02:49.2]}
13. cxd5 {[%clk 0:02:11.6]} 13... Nxd5 {[%clk 0:02:46.4]} 14. Nxd5 {[%clk
0:02:11.2]} 14... Bxd5 {[%clk 0:02:46.1]} 15. Bb2 {[%clk 0:02:09.9]} 15... Rc8
{[%clk 0:02:44.3]} 16. Qd2 {[%clk 0:02:07.7]} 16... Nf6 {[%clk 0:02:30.4]} 17.
Rfd1 {[%clk 0:02:02.6]} 17... Qc7 {[%clk 0:02:23.8]} 18. Rac1 {[%clk 0:02:00.1]}
18... Qb7 {[%clk 0:02:23.3]} 19. Rxc8 {[%clk 0:01:52.8]} 19... Rxc8 {[%clk
0:02:22.4]} 20. Rc1 {[%clk 0:01:53.5]} 20... h6 {[%clk 0:02:15.2]} 21. h3 {[%clk
0:01:40.2]} 21... Ne4 {[%clk 0:01:39.8]} 22. Rxc8+ {[%clk 0:01:02.1]} 22... Qxc8
{[%clk 0:01:37.2]} 23. Qc1 {[%clk 0:01:01.4]} 23... Qxc1+ {[%clk 0:01:34.6]} 24.
Bxc1 {[%clk 0:01:01.6]} 24... Nc3 {[%clk 0:01:31.8]} 25. Bd3 {[%clk 0:00:57.3]}
25... Be4 {[%clk 0:01:02.6]} 26. Bxe4 {[%clk 0:00:33.6]} 26... Nxe4 {[%clk
0:01:01.9]} 27. a4 {[%clk 0:00:15.6]} 27... Nc3 {[%clk 0:01:00.1]} 28. Kf1
{[%clk 0:00:09.7]} 28... Nxa4 {[%clk 0:00:59.4]} 29. Nd2 {[%clk 0:00:09.6]}
29... Nc3 {[%clk 0:00:57.2]} 30. Nc4 {[%clk 0:00:09.5]} 30... Bc5 {[%clk
0:00:56.5]} 31. Bb2 {[%clk 0:00:09.5]} 31... Nxb5 {[%clk 0:00:56.6]} 32. Ke2
{[%clk 0:00:09.1]} 32... f6 {[%clk 0:00:55.2]} 33. Kd3 {[%clk 0:00:09.3]} 33...
Nd6 {[%clk 0:00:55.3]} 34. Nd2 {[%clk 0:00:06.5]} 34... Kf7 {[%clk 0:00:54.5]}
35. Nb3 {[%clk 0:00:06.8]} 35... Ke7 {[%clk 0:00:53.8]} 36. f3 {[%clk
0:00:07.4]} 36... Kd7 {[%clk 0:00:53.7]} 37. e4 {[%clk 0:00:08]} 37... Kc6
{[%clk 0:00:53.4]} 38. Nd2 {[%clk 0:00:08.4]} 38... e5 {[%clk 0:00:52.6]} 39. g3
{[%clk 0:00:07.9]} 39... b5 {[%clk 0:00:52.8]} 40. f4 {[%clk 0:00:08.2]} 40...
exf4 {[%clk 0:00:52]} 41. gxf4 {[%clk 0:00:09.1]} 41... a4 {[%clk 0:00:49.7]}
42. e5 {[%clk 0:00:09.6]} 42... fxe5 {[%clk 0:00:49.7]} 43. Bxe5 {[%clk
0:00:08.6]} 43... Nc4 {[%clk 0:00:48.3]} 44. Bxg7 {[%clk 0:00:07.9]} 44... Nxd2
{[%clk 0:00:48.1]} 45. Kxd2 {[%clk 0:00:08.8]} 45... h5 {[%clk 0:00:48.2]} 46.
Ba1 {[%clk 0:00:08.1]} 46... Kd5 {[%clk 0:00:48]} 47. Kd3 {[%clk 0:00:08.4]}
47... b4 {[%clk 0:00:48.1]} 48. f5 {[%clk 0:00:08.8]} 48... a3 {[%clk
0:00:44.6]} 49. Kc2 {[%clk 0:00:08.4]} 49... Kc4 {[%clk 0:00:42.1]} 50. f6
{[%clk 0:00:07.4]} 50... b3+ {[%clk 0:00:42.3]} 51. Kb1 {[%clk 0:00:07.9]} 51...
Be3 {[%clk 0:00:34.9]} 52. f7 {[%clk 0:00:07.7]} 52... a2+ {[%clk 0:00:35.2]}
53. Kb2 {[%clk 0:00:06.7]} 53... Bd4+ {[%clk 0:00:31.8]} 54. Kc1 {[%clk
0:00:04.1]} 54... Bxa1 {[%clk 0:00:31.2]} 55. f8=Q {[%clk 0:00:03.9]} 55... b2+
{[%clk 0:00:31.8]} 56. Kd2 {[%clk 0:00:03.2]} 56... b1=Q {[%clk 0:00:30.8]} 57.
Qc8+ {[%clk 0:00:04.1]} 57... Kd5 {[%clk 0:00:30]} 58. Qd8+ {[%clk 0:00:04.4]}
58... Ke4 {[%clk 0:00:30.3]} 59. Qe8+ {[%clk 0:00:04]} 59... Be5 {[%clk
0:00:30.3]} 60. Qxh5 {[%clk 0:00:03.9]} 60... Qd3+ {[%clk 0:00:29.8]} 61. Ke1
{[%clk 0:00:04.1]} 61... Qe3+ {[%clk 0:00:29.9]} 62. Kf1 {[%clk 0:00:03.7]}
62... Qf3+ {[%clk 0:00:30.2]} 63. Kg1 {[%clk 0:00:03.9]} 63... Qxh5 {[%clk
0:00:29.6]} 0-1

[Event "*** Titled Tuesday Blitz"]
[Site "Chess.com"]
[Date "2021.04.27"]
[Round "11"]
[White "UKR_Master"]
[Black "RobertoJBM"]
[Result "1-0"]
[WhiteElo "2521"]
[BlackElo "2720"]
[TimeControl "180+1"]
[EndTime "12:05:04 PDT"]
[Termination "UKR_Master won by resignation"]

1. e4 {[%clk 0:03:00.6]} 1... c6 {[%clk 0:02:59.4]} 2. Nf3 {[%clk 0:03:00.6]}
2... d5 {[%clk 0:03:00.3]} 3. Nc3 {[%clk 0:03:01.2]} 3... dxe4 {[%clk
0:02:57.6]} 4. Nxe4 {[%clk 0:03:01.4]} 4... Bg4 {[%clk 0:02:56.8]} 5. Bc4 {[%clk
0:02:57.1]} 5... e6 {[%clk 0:02:56]} 6. O-O {[%clk 0:02:53.2]} 6... Nd7 {[%clk
0:02:54.1]} 7. d4 {[%clk 0:02:51.9]} 7... Ndf6 {[%clk 0:02:51.3]} 8. Ng3 {[%clk
0:02:45.1]} 8... Bxf3 {[%clk 0:02:47.3]} 9. Qxf3 {[%clk 0:02:45.2]} 9... Qxd4
{[%clk 0:02:47.2]} 10. Bb3 {[%clk 0:02:45]} 10... O-O-O {[%clk 0:02:43.2]} 11.
Be3 {[%clk 0:02:43.3]} 11... Qg4 {[%clk 0:02:14.1]} 12. Qxg4 {[%clk 0:02:41.2]}
12... Nxg4 {[%clk 0:02:15]} 13. Bxa7 {[%clk 0:02:41.9]} 13... N8f6 {[%clk
0:02:13.9]} 14. Rad1 {[%clk 0:02:35.3]} 14... Bd6 {[%clk 0:02:09.3]} 15. h3
{[%clk 0:02:29.9]} 15... Ne5 {[%clk 0:02:01.1]} 16. Rfe1 {[%clk 0:02:23.6]}
16... Bc7 {[%clk 0:01:57.1]} 17. Bd4 {[%clk 0:02:19.5]} 17... Ng6 {[%clk
0:01:56.5]} 18. Bc3 {[%clk 0:02:15.7]} 18... Nf4 {[%clk 0:01:49.3]} 19. Kf1
{[%clk 0:02:05]} 19... N4d5 {[%clk 0:01:47]} 20. Bd2 {[%clk 0:01:58]} 20... b5
{[%clk 0:01:42.6]} 21. Ne4 {[%clk 0:01:55.2]} 21... Nxe4 {[%clk 0:01:41.3]} 22.
Rxe4 {[%clk 0:01:55.3]} 22... Rd7 {[%clk 0:01:40.4]} 23. a4 {[%clk 0:01:51.2]}
23... Rhd8 {[%clk 0:01:39.4]} 24. axb5 {[%clk 0:01:47.9]} 24... cxb5 {[%clk
0:01:39.6]} 25. Ke2 {[%clk 0:01:24.1]} 25... Nf4+ {[%clk 0:01:28.5]} 26. Bxf4
{[%clk 0:00:50.7]} 26... Rxd1 {[%clk 0:01:26.9]} 27. Be3 {[%clk 0:00:51.4]}
27... R1d7 {[%clk 0:01:21.7]} 28. Rh4 {[%clk 0:00:49.2]} 28... h6 {[%clk
0:01:21.2]} 29. Rh5 {[%clk 0:00:49.6]} 29... e5 {[%clk 0:01:05.2]} 30. Rf5
{[%clk 0:00:48.4]} 30... f6 {[%clk 0:00:25.6]} 31. Be6 {[%clk 0:00:47.8]} 31...
Kb7 {[%clk 0:00:25.2]} 32. Bxd7 {[%clk 0:00:47.7]} 32... Rxd7 {[%clk 0:00:26.1]}
33. Bc1 {[%clk 0:00:42.4]} 33... Kc6 {[%clk 0:00:26.3]} 34. Rf3 {[%clk
0:00:42.4]} 34... Ba5 {[%clk 0:00:24.4]} 35. Rd3 {[%clk 0:00:40.8]} 35... Rc7
{[%clk 0:00:23.9]} 36. Be3 {[%clk 0:00:37.7]} 36... Bb4 {[%clk 0:00:22.4]} 37.
Rd8 {[%clk 0:00:35.2]} 37... Be7 {[%clk 0:00:21.3]} 38. Rg8 {[%clk 0:00:33.6]}
38... Bd6 {[%clk 0:00:21.6]} 39. g4 {[%clk 0:00:32]} 39... Kd5 {[%clk
0:00:21.7]} 40. Kd3 {[%clk 0:00:30.5]} 40... e4+ {[%clk 0:00:18.2]} 41. Kd2
{[%clk 0:00:31]} 41... b4 {[%clk 0:00:18.3]} 42. Rd8 {[%clk 0:00:30.6]} 42...
Ke6 {[%clk 0:00:18]} 43. Rxd6+ {[%clk 0:00:27.9]} 43... Kxd6 {[%clk 0:00:18.2]}
44. Bf4+ {[%clk 0:00:28.7]} 44... Kc6 {[%clk 0:00:18]} 45. Bxc7 {[%clk
0:00:29.6]} 45... Kxc7 {[%clk 0:00:18]} 46. Ke3 {[%clk 0:00:30.4]} 46... Kd6
{[%clk 0:00:10.7]} 47. Kxe4 {[%clk 0:00:30.9]} 47... Kc5 {[%clk 0:00:11.6]} 48.
c3 {[%clk 0:00:27.2]} 48... b3 {[%clk 0:00:07.9]} 49. Kd3 {[%clk 0:00:26.2]}
49... Kd5 {[%clk 0:00:07.6]} 50. c4+ {[%clk 0:00:26.3]} 50... Ke5 {[%clk
0:00:07.6]} 51. Kc3 {[%clk 0:00:24.4]} 51... g6 {[%clk 0:00:06.5]} 52. Kxb3
{[%clk 0:00:23.7]} 52... f5 {[%clk 0:00:05.2]} 53. gxf5 {[%clk 0:00:23.6]} 53...
Kxf5 {[%clk 0:00:06.1]} 54. c5 {[%clk 0:00:23.6]} 54... g5 {[%clk 0:00:06.5]}
55. c6 {[%clk 0:00:23.4]} 55... Ke6 {[%clk 0:00:06.7]} 56. Kb4 {[%clk
0:00:24.1]} 56... Kd6 {[%clk 0:00:06.3]} 57. Kb5 {[%clk 0:00:24.7]} 57... Kc7
{[%clk 0:00:05.8]} 58. Kc5 {[%clk 0:00:25.1]} 58... h5 {[%clk 0:00:06.3]} 59. b4
{[%clk 0:00:25.8]} 59... g4 {[%clk 0:00:06.1]} 60. h4 {[%clk 0:00:19.4]} 1-0

[Event "*** Titled Tuesday Blitz"]
[Site "Chess.com"]
[Date "2021.04.27"]
[Round "11"]
[White "Leonid_Starozhilov"]
[Black "superchess02"]
[Result "0-1"]
[WhiteElo "2684"]
[BlackElo "2795"]
[TimeControl "180+1"]
[EndTime "12:05:05 PDT"]
[Termination "superchess02 won by resignation"]

1. e4 {[%clk 0:03:00.9]} 1... e5 {[%clk 0:02:59.3]} 2. Nf3 {[%clk 0:02:59.2]}
2... Nc6 {[%clk 0:02:59.9]} 3. Bc4 {[%clk 0:02:58.8]} 3... Bc5 {[%clk
0:02:59.3]} 4. d3 {[%clk 0:02:59]} 4... Nf6 {[%clk 0:02:58.6]} 5. Nc3 {[%clk
0:02:59.5]} 5... h6 {[%clk 0:02:57.4]} 6. Be3 {[%clk 0:02:59.7]} 6... Bb6 {[%clk
0:02:55.5]} 7. Bxb6 {[%clk 0:02:58.3]} 7... axb6 {[%clk 0:02:55.3]} 8. d4 {[%clk
0:02:59]} 8... exd4 {[%clk 0:02:48.5]} 9. Nxd4 {[%clk 0:02:58.9]} 9... d6 {[%clk
0:02:47.7]} 10. O-O {[%clk 0:02:29.3]} 10... O-O {[%clk 0:02:44.6]} 11. Re1
{[%clk 0:02:08.7]} 11... Re8 {[%clk 0:02:39.4]} 12. a3 {[%clk 0:01:55.4]} 12...
Ra5 {[%clk 0:02:36.9]} 13. Nd5 {[%clk 0:01:41.9]} 13... Nxe4 {[%clk 0:02:23.5]}
14. Nb5 {[%clk 0:01:03]} 14... Qg5 {[%clk 0:01:36.3]} 15. Nbxc7 {[%clk
0:00:29.2]} 15... Bg4 {[%clk 0:01:21.5]} 16. Qc1 {[%clk 0:00:20.5]} 16... Qf5
{[%clk 0:00:57.1]} 17. Qe3 {[%clk 0:00:08.8]} 17... Re5 {[%clk 0:00:52.5]} 18.
f3 {[%clk 0:00:06.7]} 18... Nf6 {[%clk 0:00:50.7]} 19. Qd3 {[%clk 0:00:05.1]}
19... Qxd3 {[%clk 0:00:46.7]} 20. Nxf6+ {[%clk 0:00:05.2]} 20... gxf6 {[%clk
0:00:46.2]} 21. cxd3 {[%clk 0:00:04.1]} 21... Bd7 {[%clk 0:00:44]} 22. f4 {[%clk
0:00:03.2]} 22... Rxe1+ {[%clk 0:00:37.3]} 23. Rxe1 {[%clk 0:00:04.1]} 23... Kf8
{[%clk 0:00:37.8]} 24. Nd5 {[%clk 0:00:04.2]} 24... Be6 {[%clk 0:00:32.4]} 25.
Nxb6 {[%clk 0:00:03.8]} 25... Nd4 {[%clk 0:00:29.8]} 26. Bxe6 {[%clk 0:00:03.1]}
26... fxe6 {[%clk 0:00:29.3]} 27. Nc4 {[%clk 0:00:03.8]} 27... Ra6 {[%clk
0:00:28.7]} 28. Kf2 {[%clk 0:00:03.7]} 28... b5 {[%clk 0:00:27.1]} 29. Ne3
{[%clk 0:00:03.5]} 29... Rc6 {[%clk 0:00:26.5]} 30. g4 {[%clk 0:00:02.8]} 30...
Nb3 {[%clk 0:00:23.7]} 31. h4 {[%clk 0:00:02.5]} 31... Nc5 {[%clk 0:00:23.8]}
32. Rd1 {[%clk 0:00:02.5]} 32... e5 {[%clk 0:00:22.9]} 33. Ke2 {[%clk 0:00:03]}
33... Ne6 {[%clk 0:00:22.2]} 34. Nf5 {[%clk 0:00:03.7]} 34... Nxf4+ {[%clk
0:00:22]} 35. Kf3 {[%clk 0:00:04.1]} 35... h5 {[%clk 0:00:21.9]} 36. gxh5 {[%clk
0:00:04.2]} 36... Nxh5 {[%clk 0:00:21.3]} 37. Ng3 {[%clk 0:00:04.1]} 37... Nf4
{[%clk 0:00:20.3]} 38. Ne2 {[%clk 0:00:04.2]} 38... Ne6 {[%clk 0:00:19.8]} 39.
d4 {[%clk 0:00:04]} 39... Rc2 {[%clk 0:00:19.8]} 40. dxe5 {[%clk 0:00:03.3]}
40... dxe5 {[%clk 0:00:20.7]} 41. b3 {[%clk 0:00:02.9]} 41... f5 {[%clk
0:00:20.1]} 42. a4 {[%clk 0:00:02.9]} 42... e4+ {[%clk 0:00:20.1]} 43. Ke3
{[%clk 0:00:03.6]} 43... Rb2 {[%clk 0:00:19.6]} 44. axb5 {[%clk 0:00:03]} 44...
Rxb3+ {[%clk 0:00:19.8]} 45. Kd2 {[%clk 0:00:03.1]} 45... Rxb5 {[%clk 0:00:20]}
46. Rf1 {[%clk 0:00:02.9]} 46... Ke7 {[%clk 0:00:19.2]} 47. Ng3 {[%clk
0:00:02.8]} 47... Nd4 {[%clk 0:00:19.4]} 48. Nxe4 {[%clk 0:00:01.8]} 48... fxe4
{[%clk 0:00:19.3]} 49. Ke3 {[%clk 0:00:02.6]} 49... Nf5+ {[%clk 0:00:18.5]} 50.
Kf4 {[%clk 0:00:02]} 50... e3 {[%clk 0:00:18.5]} 51. h5 {[%clk 0:00:02]} 51...
Kf6 {[%clk 0:00:18.2]} 52. Rc1 {[%clk 0:00:01.9]} 52... Rb4+ {[%clk 0:00:18.2]}
53. Kf3 {[%clk 0:00:02.6]} 53... Kg5 {[%clk 0:00:18.5]} 54. Rg1+ {[%clk
0:00:01.5]} 54... Kxh5 {[%clk 0:00:17.8]} 55. Rg8 {[%clk 0:00:02.2]} 55... Rb2
{[%clk 0:00:15.9]} 56. Rh8+ {[%clk 0:00:01.9]} 56... Kg6 {[%clk 0:00:15.9]} 57.
Rg8+ {[%clk 0:00:02.7]} 57... Kf6 {[%clk 0:00:15.8]} 0-1

[Event "*** Titled Tuesday Blitz"]
[Site "Chess.com"]
[Date "2021.04.27"]
[Round "11"]
[White "Michaelson_11"]
[Black "chessflav"]
[Result "1-0"]
[WhiteElo "2255"]
[BlackElo "2314"]
[TimeControl "180+1"]
[EndTime "12:05:05 PDT"]
[Termination "Michaelson_11 won on time"]

1. e4 {[%clk 0:03:00.9]} 1... c5 {[%clk 0:02:58.7]} 2. Nc3 {[%clk 0:02:59.9]}
2... Nc6 {[%clk 0:02:56.9]} 3. Bb5 {[%clk 0:02:58.9]} 3... Nd4 {[%clk
0:02:57.1]} 4. Nf3 {[%clk 0:02:58.3]} 4... g6 {[%clk 0:02:57]} 5. Ba4 {[%clk
0:02:48.5]} 5... Bg7 {[%clk 0:02:55]} 6. O-O {[%clk 0:02:48.5]} 6... e6 {[%clk
0:02:51.7]} 7. Nxd4 {[%clk 0:02:46.5]} 7... cxd4 {[%clk 0:02:51.3]} 8. Nb5
{[%clk 0:02:45.3]} 8... Qb6 {[%clk 0:02:38.2]} 9. c3 {[%clk 0:02:40.8]} 9... d3
{[%clk 0:02:27.4]} 10. Qf3 {[%clk 0:02:16.1]} 10... a6 {[%clk 0:02:26.5]} 11.
Na3 {[%clk 0:02:12.9]} 11... Qa5 {[%clk 0:02:24.6]} 12. Bb3 {[%clk 0:02:07.6]}
12... Nf6 {[%clk 0:02:24.3]} 13. Qxd3 {[%clk 0:02:04.5]} 13... O-O {[%clk
0:02:24.3]} 14. Qe2 {[%clk 0:01:57.7]} 14... b5 {[%clk 0:02:20.4]} 15. e5 {[%clk
0:01:53.3]} 15... Ne8 {[%clk 0:02:06.8]} 16. d4 {[%clk 0:01:48.3]} 16... Bb7
{[%clk 0:02:06]} 17. Nc2 {[%clk 0:01:28.6]} 17... d6 {[%clk 0:02:04.7]} 18. f4
{[%clk 0:01:24.3]} 18... Rd8 {[%clk 0:01:49.8]} 19. Be3 {[%clk 0:01:15.1]} 19...
Nc7 {[%clk 0:01:44.6]} 20. Nb4 {[%clk 0:01:00.7]} 20... h5 {[%clk 0:01:13.2]}
21. Nd3 {[%clk 0:00:51.3]} 21... Nd5 {[%clk 0:01:09.8]} 22. exd6 {[%clk
0:00:46.2]} 22... Nxe3 {[%clk 0:01:05.8]} 23. Qxe3 {[%clk 0:00:45.5]} 23... Rxd6
{[%clk 0:01:05.9]} 24. Nc5 {[%clk 0:00:45.5]} 24... Ba8 {[%clk 0:01:01.9]} 25.
Ne4 {[%clk 0:00:24.2]} 25... Rdd8 {[%clk 0:00:57]} 26. Ng5 {[%clk 0:00:22]}
26... Qb6 {[%clk 0:00:35.2]} 27. Bc2 {[%clk 0:00:12.8]} 27... b4 {[%clk
0:00:33.1]} 28. Kh1 {[%clk 0:00:12.2]} 28... bxc3 {[%clk 0:00:32.6]} 29. bxc3
{[%clk 0:00:13.1]} 29... Qc6 {[%clk 0:00:32.8]} 30. Be4 {[%clk 0:00:11.8]} 30...
Qc7 {[%clk 0:00:31]} 31. Bxa8 {[%clk 0:00:12]} 31... Rxa8 {[%clk 0:00:31.9]} 32.
Rac1 {[%clk 0:00:10.3]} 32... Rac8 {[%clk 0:00:32.1]} 33. c4 {[%clk 0:00:10.3]}
33... Qa5 {[%clk 0:00:28]} 34. Nxe6 {[%clk 0:00:05.9]} 34... fxe6 {[%clk
0:00:25.5]} 35. Qxe6+ {[%clk 0:00:06.8]} 35... Kh7 {[%clk 0:00:25.1]} 36. d5
{[%clk 0:00:07]} 36... Rce8 {[%clk 0:00:15.7]} 37. Qd7 {[%clk 0:00:06.1]} 37...
Qxa2 {[%clk 0:00:15.3]} 38. f5 {[%clk 0:00:06.3]} 38... Re2 {[%clk 0:00:11.7]}
39. fxg6+ {[%clk 0:00:06]} 39... Kh6 {[%clk 0:00:09.6]} 40. Rxf8 {[%clk
0:00:04.8]} 40... Rxg2 {[%clk 0:00:08.2]} 41. Rh8+ {[%clk 0:00:04.8]} 41... Bxh8
{[%clk 0:00:08.4]} 42. Qh7+ {[%clk 0:00:04.6]} 42... Kg5 {[%clk 0:00:08.9]} 43.
Qe7+ {[%clk 0:00:05]} 43... Kxg6 {[%clk 0:00:06.6]} 44. Qe4+ {[%clk 0:00:05.1]}
44... Kh6 {[%clk 0:00:05.5]} 45. Qxg2 {[%clk 0:00:05.7]} 45... Qxg2+ {[%clk
0:00:04.9]} 46. Kxg2 {[%clk 0:00:06.6]} 46... Be5 {[%clk 0:00:04.5]} 47. Rd1
{[%clk 0:00:06.9]} 47... Bd6 {[%clk 0:00:04.3]} 48. h4 {[%clk 0:00:06.6]} 48...
a5 {[%clk 0:00:03.9]} 49. Kf3 {[%clk 0:00:07.5]} 49... a4 {[%clk 0:00:04.2]} 50.
Ke4 {[%clk 0:00:07.8]} 50... a3 {[%clk 0:00:04.5]} 51. Kf5 {[%clk 0:00:07.9]}
1-0

[Event "*** Titled Tuesday Blitz"]
[Site "Chess.com"]
[Date "2021.04.27"]
[Round "11"]
[White "levallem"]
[Black "LamaChampetre"]
[Result "1-0"]
[WhiteElo "2277"]
[BlackElo "2204"]
[TimeControl "180+1"]
[EndTime "12:05:09 PDT"]
[Termination "levallem won by checkmate"]

1. e4 {[%clk 0:03:00.9]} 1... c5 {[%clk 0:02:59.1]} 2. Nf3 {[%clk 0:03:00.1]}
2... g6 {[%clk 0:02:58.4]} 3. d4 {[%clk 0:02:58.2]} 3... cxd4 {[%clk 0:02:59.3]}
4. Qxd4 {[%clk 0:02:58]} 4... Nf6 {[%clk 0:02:58.8]} 5. e5 {[%clk 0:02:58.1]}
5... Nc6 {[%clk 0:02:58.4]} 6. Qa4 {[%clk 0:02:58.4]} 6... Nd5 {[%clk
0:02:57.6]} 7. Qe4 {[%clk 0:02:57]} 7... Nb6 {[%clk 0:02:56.6]} 8. Nc3 {[%clk
0:02:49.5]} 8... Bg7 {[%clk 0:02:55.5]} 9. Bf4 {[%clk 0:02:44.9]} 9... d5 {[%clk
0:02:49.6]} 10. exd6 {[%clk 0:02:41]} 10... Bf5 {[%clk 0:02:48.2]} 11. Qe2
{[%clk 0:02:28.6]} 11... O-O {[%clk 0:02:32.4]} 12. dxe7 {[%clk 0:02:12]} 12...
Qxe7 {[%clk 0:02:29.2]} 13. Qxe7 {[%clk 0:02:10.7]} 13... Bxc3+ {[%clk
0:02:28.9]} 14. bxc3 {[%clk 0:02:09.6]} 14... Nxe7 {[%clk 0:02:28.9]} 15. Bd3
{[%clk 0:01:58.3]} 15... Rfe8 {[%clk 0:02:10.2]} 16. O-O {[%clk 0:01:54.7]}
16... Rac8 {[%clk 0:02:07]} 17. Bd2 {[%clk 0:01:51.4]} 17... Red8 {[%clk
0:01:46.1]} 18. Nd4 {[%clk 0:01:46.5]} 18... Bxd3 {[%clk 0:01:18.7]} 19. cxd3
{[%clk 0:01:45.3]} 19... Na4 {[%clk 0:00:57.3]} 20. Rac1 {[%clk 0:01:13]} 20...
Nd5 {[%clk 0:00:45.7]} 21. Bg5 {[%clk 0:00:42]} 21... f6 {[%clk 0:00:36.5]} 22.
c4 {[%clk 0:00:30.3]} 22... Ndc3 {[%clk 0:00:26.4]} 23. Bxf6 {[%clk 0:00:21.6]}
23... Rxd4 {[%clk 0:00:20.5]} 24. Bxd4 {[%clk 0:00:22.5]} 24... Ne2+ {[%clk
0:00:20.6]} 25. Kh1 {[%clk 0:00:22.8]} 25... Nxd4 {[%clk 0:00:19.5]} 26. Rfe1
{[%clk 0:00:21.1]} 26... Nc5 {[%clk 0:00:18.3]} 27. Re5 {[%clk 0:00:20.6]} 27...
b6 {[%clk 0:00:17.4]} 28. Rd5 {[%clk 0:00:20.1]} 28... Nde6 {[%clk 0:00:16.5]}
29. Re1 {[%clk 0:00:19.4]} 29... Nf4 {[%clk 0:00:14.1]} 30. Rde5 {[%clk
0:00:11.1]} 30... Nfxd3 {[%clk 0:00:14.1]} 31. Re8+ {[%clk 0:00:11.3]} 31...
Rxe8 {[%clk 0:00:14]} 32. Rxe8+ {[%clk 0:00:12.2]} 32... Kf7 {[%clk 0:00:14.2]}
33. Ra8 {[%clk 0:00:12.8]} 33... a6 {[%clk 0:00:13.4]} 34. Ra7+ {[%clk
0:00:12.6]} 34... Kf6 {[%clk 0:00:12.8]} 35. Kg1 {[%clk 0:00:12.5]} 35... h6
{[%clk 0:00:12]} 36. g3 {[%clk 0:00:09.8]} 36... Nb2 {[%clk 0:00:11.9]} 37. Rc7
{[%clk 0:00:07.4]} 37... Nba4 {[%clk 0:00:11.8]} 38. Kg2 {[%clk 0:00:06.3]}
38... g5 {[%clk 0:00:11.9]} 39. Rc6+ {[%clk 0:00:06.5]} 39... Kg7 {[%clk
0:00:12]} 40. h4 {[%clk 0:00:05.2]} 40... gxh4 {[%clk 0:00:11.7]} 41. gxh4
{[%clk 0:00:06.1]} 41... h5 {[%clk 0:00:11.6]} 42. Kg3 {[%clk 0:00:05.5]} 42...
Ne4+ {[%clk 0:00:10.6]} 43. Kf4 {[%clk 0:00:04.9]} 43... Nxf2 {[%clk 0:00:10.4]}
44. Kg5 {[%clk 0:00:04.7]} 44... Ne4+ {[%clk 0:00:07]} 45. Kxh5 {[%clk
0:00:05.2]} 45... b5 {[%clk 0:00:05.2]} 46. Rxa6 {[%clk 0:00:03.7]} 46... Nf6+
{[%clk 0:00:01.7]} 47. Kg5 {[%clk 0:00:03.6]} 47... Ne4+ {[%clk 0:00:01.9]} 48.
Kf4 {[%clk 0:00:03.8]} 48... Nec5 {[%clk 0:00:02.1]} 49. Ra7+ {[%clk 0:00:03.5]}
49... Kf6 {[%clk 0:00:01.8]} 50. cxb5 {[%clk 0:00:04.4]} 50... Ke6 {[%clk
0:00:01.3]} 51. h5 {[%clk 0:00:03.3]} 51... Kd5 {[%clk 0:00:02.2]} 52. h6 {[%clk
0:00:03.5]} 52... Kc4 {[%clk 0:00:03.1]} 53. Rc7 {[%clk 0:00:03.7]} 53... Kb4
{[%clk 0:00:02.4]} 54. Kg5 {[%clk 0:00:04]} 54... Nd3 {[%clk 0:00:03.3]} 55. Kg6
{[%clk 0:00:04.3]} 55... Nac5 {[%clk 0:00:04.2]} 56. h7 {[%clk 0:00:05.2]} 56...
Kxb5 {[%clk 0:00:04.3]} 57. h8=Q {[%clk 0:00:06.1]} 57... Ne5+ {[%clk
0:00:04.7]} 58. Qxe5 {[%clk 0:00:04.6]} 58... Kb6 {[%clk 0:00:04.3]} 59. Qxc5+
{[%clk 0:00:04.9]} 59... Ka6 {[%clk 0:00:04.6]} 60. Ra7# {[%clk 0:00:05.8]} 1-0